[Event "GER-ch Rapid Women 2017"]
[Site "Erfurt"]
[Date "2017.07.29"]
[Round "4"]
[White "Ries, Jutta"]
[Black "Fuchs, Judith"]
[Result "0-1"]
[ECO "A03"]
[WhiteElo "2051"]
[BlackElo "2285"]
[Annotator "NA"]
[PlyCount "50"]
[EventDate "2017.??.??"]
[EventType "swiss"]
[EventCountry "GER"]
[SourceTitle "playchess.com"]
[Source "ChessBase"]
[SourceQuality "1"]
[TimeControl "1200"]

1. f4 {[%emt 0:00:02]} d5 {[%emt 0:00:03]} 2. Nf3 {[%emt 0:00:02]} c5 {[%emt 0:00:06]} 3. b3 {[%emt 0:00:02]} Nf6 {[%emt 0:00:14]} 4. Bb2 {[%emt 0:00:02]} e6 {[%emt 0:00:06]} 5. e3 {[%emt 0:00:02]} Be7 {[%emt 0:00:05]} 6. Bb5+ {[%emt 0:00:09]} Bd7 7. Qe2 {[%emt 0:00:18]} O-O {[%emt 0:00:33]} 8. Bxd7 {[%emt 0:00:11]} Nbxd7 {[%emt 0:00:17]} 9. O-O {[%emt 0:00:03]} a6 {[%emt 0:00:05]} 10. d3 {[%emt 0:00:08]} b5 {[%emt 0:00:04]} 11. Nbd2 {[%emt 0:00:02]} Qb6 {[%emt 0:00:06]} 12. c4 {[%emt 0:00:06]} bxc4 {[%emt 0:00:28]} 13. dxc4 {[%emt 0:00:02]} a5 {[%emt 0:00:32]} 14. Kh1 {[%emt 0:01:44]} a4 {[%emt 0:00:08]} 15. Ne5 {[%emt 0:04:56]} Rfd8 {[%emt 0:00:54]} 16. Rfb1 {[%emt 0:01:08]} a3 {[%emt 0:01:27]} 17. Bc1 {[%emt 0:01:39]} Nxe5 {[%emt 0:00:47]} 18. fxe5 {[%emt 0:00:03]} Nd7 {[%emt 0:00:12]} 19. cxd5 {[%emt 0:00:59]} exd5 {[%emt 0:00:05]} 20. e4 {[%emt 0:00:37]} Nxe5 {[%emt 0:01:05]} 21. exd5 {[%emt 0:00:14]} Rxd5 {[%emt 0:00:35]} 22. Nc4 {[%emt 0:00:48]} Nxc4 {[%emt 0:01:05]} 23. bxc4 {[%emt 0:00:03]} Qe6 {[%emt 0:00:06]} 24. Qf1 {[%emt 0:01:16]} Rf5 {[%emt 0:00:19]} 25. Qg1 {[%emt 0:01:05]} Bf6 {[%emt 0:00:11]} 0-1

[Event "GER-ch Rapid Women 2017"]
[Site "Erfurt"]
[Date "2017.07.29"]
[Round "4"]
[White "Muetsch, Annmarie"]
[Black "Zahn, Alina"]
[Result "1-0"]
[ECO "C54"]
[WhiteElo "2049"]
[BlackElo "2025"]
[Annotator "NA"]
[PlyCount "131"]
[EventDate "2017.??.??"]
[EventType "swiss"]
[EventCountry "GER"]
[SourceTitle "playchess.com"]
[Source "ChessBase"]
[SourceQuality "1"]
[TimeControl "1200"]

1. e4 {[%emt 0:00:01]} e5 {[%emt 0:00:01]} 2. Nf3 {[%emt 0:00:02]} Nc6 {[%emt 0:00:00]} 3. Bc4 {[%emt 0:00:01]} Bc5 {[%emt 0:00:04]} 4. c3 {[%emt 0:00:01]} Nf6 {[%emt 0:00:02]} 5. d3 {[%emt 0:00:02]} O-O {[%emt 0:00:04]} 6. Nbd2 {[%emt 0:00:02]} d5 {[%emt 0:00:17]} 7. exd5 {[%emt 0:00:03]} Nxd5 {[%emt 0:00:02]} 8. Ne4 {[%emt 0:00:03]} Be7 {[%emt 0:00:27]} 9. O-O {[%emt 0:00:05]} Bg4 {[%emt 0:01:28]} 10. Ng3 {[%emt 0:01:05]} Qd7 {[%emt 0:01:09]} 11. h3 {[%emt 0:00:26]} Be6 {[%emt 0:00:11]} 12. Re1 {[%emt 0:00:26]} f6 {[%emt 0:00:30]} 13. d4 {[%emt 0:00:35]} exd4 {[%emt 0:00:36]} 14. Nxd4 {[%emt 0:01:25]} Nxd4 {[%emt 0:05:53]} 15. Qxd4 {[%emt 0:00:07]} Rad8 {[%emt 0:01:59]} 16. Qe4 {[%emt 0:05:28]} Bf7 {[%emt 0:00:13]} 17. Nf5 {[%emt 0:02:24]} Bc5 {[%emt 0:00:30]} 18. Qg4 {[%emt 0:02:32]} Bg6 {[%emt 0:00:48]} 19. Ne3 {[%emt 0:00:49]} Qxg4 {[%emt 0:00:26]} 20. hxg4 {[%emt 0:00:12]} Bxe3 {[%emt 0:00:07]} 21. Bxe3 {[%emt 0:00:01]} Kh8 {[%emt 0:00:01]} 22. Bc5 {[%emt 0:00:08]} Rg8 {[%emt 0:00:18]} 23. Rad1 {[%emt 0:00:06]} c6 {[%emt 0:00:01]} 24. Bxa7 {[%emt 0:00:14]} Ra8 {[%emt 0:00:03]} 25. Bd4 {[%emt 0:00:06]} Ra4 {[%emt 0:00:10]} 26. Bb3 {[%emt 0:00:02]} Raa8 {[%emt 0:00:02]} 27. Bc5 {[%emt 0:00:07]} Rge8 {[%emt 0:00:07]} 28. g3 {[%emt 0:00:06]} h6 {[%emt 0:00:03]} 29. c4 {[%emt 0:00:06]} Nc7 {[%emt 0:00:04]} 30. Bd6 {[%emt 0:00:04]} Na6 {[%emt 0:00:09]} 31. a3 {[%emt 0:00:00]} Rad8 {[%emt 0:00:06]} 32. c5 {[%emt 0:00:11]} Kh7 {[%emt 0:00:09]} 33. Bc4 {[%emt 0:00:02]} Nb8 {[%emt 0:00:07]} 34. f4 {[%emt 0:00:02]} f5 {[%emt 0:00:07]} 35. gxf5 {[%emt 0:00:07]} Bxf5 {[%emt 0:00:02]} 36. Kf2 {[%emt 0:00:03]} Bg4 {[%emt 0:00:02]} 37. Rxe8 {[%emt 0:00:05]} Rxe8 {[%emt 0:00:02]} 38. Re1 {[%emt 0:00:01]} Rxe1 {[%emt 0:00:04]} 39. Kxe1 {[%emt 0:00:01]} Nd7 {[%emt 0:00:01]} 40. b4 {[%emt 0:00:01]} Kg6 {[%emt 0:00:06]} 41. Kf2 {[%emt 0:00:01]} Bf5 {[%emt 0:00:04]} 42. Kf3 {[%emt 0:00:02]} Kf6 {[%emt 0:00:01]} 43. g4 {[%emt 0:00:00]} Bc2 {[%emt 0:00:02]} 44. Ke3 {[%emt 0:00:02]} g5 {[%emt 0:00:07]} 45. fxg5+ {[%emt 0:00:02]} Kxg5 {[%emt 0:00:02]} 46. Bf4+ {[%emt 0:00:02]} Kg6 {[%emt 0:00:03]} 47. Be2 {[%emt 0:00:11]} Nf6 {[%emt 0:00:02]} 48. Kd4 {[%emt 0:00:04]} Ba4 {[%emt 0:00:03]} 49. Ke5 Nd5 {[%emt 0:00:09]} 50. Bd2 {[%emt 0:00:07]} Bc2 {[%emt 0:00:02]} 51. Kd6 {[%emt 0:00:02]} Ba4 {[%emt 0:00:07]} 52. Bf3 {[%emt 0:00:01]} Nf6 {[%emt 0:00:04]} 53. Kc7 {[%emt 0:00:01]} Bb5 {[%emt 0:00:04]} 54. Kxb7 {[%emt 0:00:02]} h5 {[%emt 0:00:12]} 55. gxh5+ {[%emt 0:00:02]} Nxh5 {[%emt 0:00:01]} 56. Bxc6 {[%emt 0:00:03]} Bd3 {[%emt 0:00:02]} 57. b5 {[%emt 0:00:02]} Nf6 {[%emt 0:00:03]} 58. Bc3 {[%emt 0:00:03]} Ng8 {[%emt 0:00:05]} 59. Bd7 {[%emt 0:00:03]} Ne7 {[%emt 0:00:02]} 60. b6 {[%emt 0:00:03]} Kf7 {[%emt 0:00:06]} 61. c6 {[%emt 0:00:02]} Be4 {[%emt 0:00:01]} 62. Bb4 {[%emt 0:00:06]} Bd5 {[%emt 0:00:07]} 63. Bxe7 {[%emt 0:00:03]} Kxe7 {[%emt 0:00:01]} 64. Kc7 {[%emt 0:00:04]} Be4 {[%emt 0:00:03]} 65. b7 {[%emt 0:00:02]} Bd5 {[%emt 0:00:00]} 66. b8=Q {[%emt 0:00:02]} 1-0

[Event "GER-ch Rapid Women 2017"]
[Site "Erfurt"]
[Date "2017.07.29"]
[Round "4"]
[White "Daemering, Katrin"]
[Black "Bachmann, Sylvia"]
[Result "1-0"]
[ECO "B10"]
[WhiteElo "2033"]
[BlackElo "1677"]
[Annotator "NA"]
[PlyCount "59"]
[EventDate "2017.??.??"]
[EventType "swiss"]
[EventCountry "GER"]
[SourceTitle "playchess.com"]
[Source "ChessBase"]
[SourceQuality "1"]
[TimeControl "1200"]

1. e4 {[%emt 0:00:01]} c6 {[%emt 0:00:02]} 2. Nc3 {[%emt 0:00:03]} d5 {[%emt 0:00:01]} 3. Nf3 {[%emt 0:00:03]} e6 {[%emt 0:00:14]} 4. d3 {[%emt 0:00:38]} d4 {[%emt 0:00:17]} 5. Ne2 {[%emt 0:00:07]} c5 {[%emt 0:00:01]} 6. Ng3 {[%emt 0:00:21]} Nc6 {[%emt 0:00:10]} 7. Be2 {[%emt 0:00:06]} e5 {[%emt 0:00:06]} 8. h3 {[%emt 0:00:09]} Be7 {[%emt 0:00:03]} 9. O-O {[%emt 0:00:05]} Nf6 {[%emt 0:00:01]} 10. Ne1 {[%emt 0:00:28]} O-O {[%emt 0:00:03]} 11. f4 {[%emt 0:00:06]} exf4 {[%emt 0:00:08]} 12. Bxf4 {[%emt 0:00:04]} Nd7 {[%emt 0:00:08]} 13. Nf3 {[%emt 0:01:02]} f6 {[%emt 0:00:31]} 14. a3 {[%emt 0:03:03]} Qb6 {[%emt 0:00:48]} 15. Rb1 {[%emt 0:00:26]} a5 {[%emt 0:01:02]} 16. Qe1 {[%emt 0:00:22]} Nde5 {[%emt 0:00:34]} 17. Nh4 {[%emt 0:01:01]} Be6 {[%emt 0:00:44]} 18. Ngf5 {[%emt 0:00:22]} Ba2 19. Qg3 {[%emt 0:00:48]} g5 {[%emt 0:02:16]} 20. Bxe5 {[%emt 0:00:48]} fxe5 {[%emt 0:00:25]} 21. Nxe7+ {[%emt 0:00:08]} Nxe7 {[%emt 0:00:14]} 22. Qxg5+ {[%emt 0:00:08]} Ng6 {[%emt 0:00:13]} 23. Ra1 {[%emt 0:01:20]} Bf7 {[%emt 0:00:58]} 24. Nf5 {[%emt 0:01:13]} Ra6 {[%emt 0:00:43]} 25. h4 {[%emt 0:00:56]} Kh8 {[%emt 0:00:25]} 26. h5 {[%emt 0:00:32]} Qxb2 {[%emt 0:00:34]} 27. hxg6 {[%emt 0:00:23]} Rxg6 {[%emt 0:00:02]} 28. Qe7 {[%emt 0:00:08]} Kg8 {[%emt 0:02:38]} 29. Qxe5 {[%emt 0:01:29]} Qxc2 {[%emt 0:00:25]} 30. Ne7# {[%emt 0:00:03]} 1-0

[Event "GER-ch Rapid Women 2017"]
[Site "Erfurt"]
[Date "2017.07.29"]
[Round "4"]
[White "Zimmer, Elke"]
[Black "Birkholz, Olga"]
[Result "0-1"]
[ECO "B00"]
[WhiteElo "1950"]
[BlackElo "2076"]
[Annotator "NA"]
[PlyCount "71"]
[EventDate "2017.??.??"]
[EventType "swiss"]
[EventCountry "GER"]
[SourceTitle "playchess.com"]
[Source "ChessBase"]
[SourceQuality "1"]
[TimeControl "1200"]

1. e4 {[%emt 0:00:02]} b6 {[%emt 0:00:04]} 2. g3 {[%emt 0:00:04]} Bb7 {[%emt 0:00:02]} 3. Bg2 {[%emt 0:00:01]} c5 {[%emt 0:00:02]} 4. d3 {[%emt 0:00:02]} g6 {[%emt 0:00:04]} 5. Nc3 {[%emt 0:00:02]} Bg7 {[%emt 0:00:02]} 6. f4 {[%emt 0:00:19]} e6 {[%emt 0:00:01]} 7. Nf3 {[%emt 0:00:02]} Ne7 {[%emt 0:00:01]} 8. O-O {[%emt 0:00:03]} d6 {[%emt 0:00:05]} 9. h3 {[%emt 0:00:11]} O-O {[%emt 0:00:09]} 10. Kh2 {[%emt 0:00:02]} Nbc6 {[%emt 0:00:13]} 11. Ne2 {[%emt 0:00:09]} Rb8 {[%emt 0:00:09]} 12. c3 {[%emt 0:00:01]} d5 {[%emt 0:01:02]} 13. e5 {[%emt 0:00:08]} d4 {[%emt 0:00:05]} 14. c4 {[%emt 0:00:10]} a6 {[%emt 0:00:09]} 15. g4 {[%emt 0:00:01]} Qc7 {[%emt 0:00:29]} 16. Ng3 {[%emt 0:00:11]} b5 {[%emt 0:00:07]} 17. b3 {[%emt 0:00:04]} f6 {[%emt 0:00:28]} 18. exf6 {[%emt 0:00:30]} Bxf6 {[%emt 0:00:09]} 19. Ne4 {[%emt 0:00:32]} Nd8 {[%emt 0:01:01]} 20. Nfd2 {[%emt 0:00:31]} Bh4 {[%emt 0:00:27]} 21. Nf3 {[%emt 0:00:19]} Bf6 {[%emt 0:00:14]} 22. Rb1 {[%emt 0:00:07]} Bg7 {[%emt 0:00:13]} 23. Kg1 {[%emt 0:00:14]} Ba8 {[%emt 0:00:51]} 24. Bd2 {[%emt 0:00:21]} Nb7 {[%emt 0:00:33]} 25. Nfg5 {[%emt 0:00:15]} Qd7 {[%emt 0:00:16]} 26. Qe2 {[%emt 0:00:06]} h6 {[%emt 0:00:11]} 27. Nf3 {[%emt 0:00:01]} Nc6 {[%emt 0:00:47]} 28. Rbe1 {[%emt 0:00:19]} Nb4 {[%emt 0:00:34]} 29. Bxb4 {[%emt 0:00:32]} cxb4 {[%emt 0:00:01]} 30. c5 {[%emt 0:00:01]} Rbc8 {[%emt 0:00:42]} 31. Rc1 {[%emt 0:00:01]} Rxf4 {[%emt 0:00:17]} 32. c6 {[%emt 0:00:06]} Rxc6 {[%emt 0:00:02]} 33. Rxc6 {[%emt 0:00:01]} Qxc6 {[%emt 0:00:03]} 34. Nh4 {[%emt 0:00:31]} Rxf1+ {[%emt 0:00:08]} 35. Qxf1 {[%emt 0:00:01]} Qe8 {[%emt 0:00:12]} 36. Nf6+ {[%emt 0:00:30]} 0-1

[Event "GER-ch Rapid Women 2017"]
[Site "Erfurt"]
[Date "2017.07.29"]
[Round "4"]
[White "Mader, Lena"]
[Black "Yueksel, Anja"]
[Result "1-0"]
[ECO "A09"]
[WhiteElo "1880"]
[BlackElo "1472"]
[Annotator "NA"]
[PlyCount "71"]
[EventDate "2017.??.??"]
[EventType "swiss"]
[EventCountry "GER"]
[SourceTitle "playchess.com"]
[Source "ChessBase"]
[SourceQuality "1"]
[TimeControl "1200"]

1. Nf3 {[%emt 0:00:03]} d5 {[%emt 0:00:06]} 2. c4 {[%emt 0:00:01]} dxc4 {[%emt 0:00:07]} 3. Qa4+ {[%emt 0:00:02]} Nc6 {[%emt 0:00:14]} 4. Qxc4 {[%emt 0:00:02]} Nf6 {[%emt 0:00:12]} 5. g3 {[%emt 0:00:27]} e6 {[%emt 0:00:12]} 6. Bg2 {[%emt 0:00:05]} Qd7 {[%emt 0:00:27]} 7. O-O {[%emt 0:00:10]} Be7 {[%emt 0:00:59]} 8. d3 {[%emt 0:01:00]} O-O {[%emt 0:00:08]} 9. b3 {[%emt 0:00:14]} a6 {[%emt 0:00:04]} 10. Bb2 {[%emt 0:00:02]} b5 {[%emt 0:00:08]} 11. Qc2 {[%emt 0:00:26]} Bb7 {[%emt 0:00:04]} 12. a3 {[%emt 0:00:19]} Rac8 {[%emt 0:00:59]} 13. Nbd2 {[%emt 0:00:29]} Rfd8 {[%emt 0:00:39]} 14. Rac1 {[%emt 0:00:03]} Qd6 {[%emt 0:01:39]} 15. Ng5 {[%emt 0:00:54]} h6 {[%emt 0:00:33]} 16. Nge4 {[%emt 0:01:35]} Nxe4 {[%emt 0:00:13]} 17. Nxe4 {[%emt 0:00:02]} Qd7 {[%emt 0:00:23]} 18. Nc5 {[%emt 0:00:12]} Bxc5 {[%emt 0:00:14]} 19. Qxc5 {[%emt 0:00:02]} Qd6 {[%emt 0:00:37]} 20. Bxc6 {[%emt 0:00:16]} Bxc6 {[%emt 0:00:31]} 21. Qxc6 {[%emt 0:00:06]} Qxc6 {[%emt 0:00:25]} 22. Rxc6 {[%emt 0:00:02]} a5 {[%emt 0:00:23]} 23. Rfc1 {[%emt 0:00:09]} Rd7 {[%emt 0:00:02]} 24. Be5 {[%emt 0:00:13]} b4 {[%emt 0:00:40]} 25. axb4 {[%emt 0:00:06]} axb4 {[%emt 0:00:05]} 26. Rxc7 {[%emt 0:00:12]} Rdxc7 {[%emt 0:00:08]} 27. Rxc7 {[%emt 0:00:02]} Ra8 {[%emt 0:00:09]} 28. Rb7 {[%emt 0:00:54]} f6 {[%emt 0:01:20]} 29. Bd6 {[%emt 0:00:22]} Ra2 {[%emt 0:00:20]} 30. e3 {[%emt 0:00:04]} Rd2 {[%emt 0:00:20]} 31. d4 {[%emt 0:00:04]} e5 {[%emt 0:00:03]} 32. dxe5 {[%emt 0:00:13]} fxe5 {[%emt 0:00:46]} 33. Bxe5 {[%emt 0:00:03]} Rd5 {[%emt 0:00:10]} 34. Bd4 {[%emt 0:00:07]} Kh7 {[%emt 0:00:13]} 35. Rxg7+ {[%emt 0:00:05]} Kh8 {[%emt 0:00:06]} 36. Rd7+ {[%emt 0:00:01]} 1-0

[Event "GER-ch Rapid Women 2017"]
[Site "Erfurt"]
[Date "2017.07.29"]
[Round "4"]
[White "Ganser, Ganokorn"]
[Black "Hess, Olena"]
[Result "0-1"]
[ECO "A41"]
[WhiteElo "1698"]
[BlackElo "2094"]
[Annotator "NA"]
[PlyCount "81"]
[EventDate "2017.??.??"]
[EventType "swiss"]
[EventCountry "GER"]
[SourceTitle "playchess.com"]
[Source "ChessBase"]
[SourceQuality "1"]
[TimeControl "1200"]

1. d4 {[%emt 0:00:02]} d6 {[%emt 0:00:01]} 2. c4 {[%emt 0:00:02]} e5 {[%emt 0:00:05]} 3. Nc3 {[%emt 0:00:22]} exd4 {[%emt 0:00:06]} 4. Qxd4 {[%emt 0:00:02]} Nc6 {[%emt 0:00:01]} 5. Qd2 {[%emt 0:00:11]} Be6 {[%emt 0:00:01]} 6. b3 {[%emt 0:00:05]} Nf6 {[%emt 0:00:33]} 7. Bb2 {[%emt 0:00:03]} d5 {[%emt 0:02:05]} 8. cxd5 {[%emt 0:01:09]} Nxd5 {[%emt 0:00:05]} 9. e4 {[%emt 0:01:33]} Nxc3 {[%emt 0:01:38]} 10. Bxc3 {[%emt 0:00:03]} Qxd2+ {[%emt 0:00:28]} 11. Bxd2 {[%emt 0:00:48]} Nb4 {[%emt 0:00:56]} 12. O-O-O {[%emt 0:01:27]} Nxa2+ {[%emt 0:01:26]} 13. Kb2 {[%emt 0:00:01]} Nb4 {[%emt 0:00:02]} 14. Bc3 {[%emt 0:00:31]} Rd8 {[%emt 0:00:34]} 15. Rxd8+ {[%emt 0:01:52]} Kxd8 {[%emt 0:00:01]} 16. Nf3 {[%emt 0:00:01]} f6 {[%emt 0:02:23]} 17. Bb5 {[%emt 0:03:09]} Nc6 {[%emt 0:02:41]} 18. Bxc6 {[%emt 0:01:47]} bxc6 {[%emt 0:00:01]} 19. Nd4 {[%emt 0:00:15]} Bd7 {[%emt 0:00:01]} 20. Rd1 {[%emt 0:00:07]} Kc8 {[%emt 0:00:08]} 21. b4 {[%emt 0:02:11]} c5 {[%emt 0:00:33]} 22. bxc5 {[%emt 0:00:04]} Bxc5 {[%emt 0:00:01]} 23. f3 {[%emt 0:00:36]} Re8 {[%emt 0:00:03]} 24. Nb3 {[%emt 0:00:04]} Bb6 {[%emt 0:00:33]} 25. Nd2 {[%emt 0:00:19]} Be6 {[%emt 0:00:14]} 26. Rc1 {[%emt 0:00:50]} Kb7 {[%emt 0:00:11]} 27. Ka3 {[%emt 0:00:03]} Rd8 {[%emt 0:00:08]} 28. Rb1 {[%emt 0:00:05]} Rd3 {[%emt 0:00:09]} 29. Kb2 {[%emt 0:00:17]} c6 {[%emt 0:00:55]} 30. Kc2 {[%emt 0:00:02]} Rd8 {[%emt 0:00:06]} 31. Nb3 {[%emt 0:00:10]} Kc7 {[%emt 0:00:18]} 32. Nd2 {[%emt 0:00:03]} a5 {[%emt 0:00:23]} 33. Nf1 {[%emt 0:00:26]} a4 {[%emt 0:00:08]} 34. Nd2 {[%emt 0:00:14]} Ra8 {[%emt 0:00:10]} 35. Ra1 {[%emt 0:00:01]} Bc5 {[%emt 0:00:05]} 36. Nb1 {[%emt 0:00:05]} a3 {[%emt 0:00:08]} 37. Kd3 {[%emt 0:00:07]} Bb3 {[%emt 0:00:31]} 38. Nd2 {[%emt 0:00:01]} Rd8+ {[%emt 0:00:02]} 39. Ke2 {[%emt 0:00:04]} Ba4 {[%emt 0:00:14]} 40. Nc4 {[%emt 0:00:01]} Bb5 {[%emt 0:00:01]} 41. Ba5+ 0-1

[Event "GER-ch Rapid Women 2017"]
[Site "Erfurt"]
[Date "2017.07.29"]
[Round "5"]
[White "Michna, Marta"]
[Black "Ries, Jutta"]
[Result "1-0"]
[ECO "A45"]
[WhiteElo "2377"]
[BlackElo "2051"]
[Annotator "NA"]
[PlyCount "110"]
[EventDate "2017.??.??"]
[EventType "swiss"]
[EventCountry "GER"]
[SourceTitle "playchess.com"]
[Source "ChessBase"]
[SourceQuality "1"]
[TimeControl "1200"]

1. d4 {[%emt 0:00:02]} Nf6 {[%emt 0:00:02]} 2. Bg5 {[%emt 0:00:06]} d5 {[%emt 0:00:31]} 3. Bxf6 {[%emt 0:00:04]} exf6 {[%emt 0:00:02]} 4. e3 {[%emt 0:00:04]} Bd6 {[%emt 0:00:02]} 5. g3 {[%emt 0:00:08]} Bf5 {[%emt 0:00:08]} 6. Nd2 {[%emt 0:00:07]} c6 {[%emt 0:00:32]} 7. Bg2 {[%emt 0:00:10]} Qd7 {[%emt 0:00:04]} 8. a3 {[%emt 0:01:00]} Na6 {[%emt 0:00:14]} 9. c4 {[%emt 0:00:12]} dxc4 {[%emt 0:00:46]} 10. Nxc4 {[%emt 0:00:04]} Nc7 {[%emt 0:00:01]} 11. Ne2 {[%emt 0:00:14]} Be7 {[%emt 0:00:35]} 12. Qb3 {[%emt 0:00:57]} Nb5 {[%emt 0:01:32]} 13. O-O {[%emt 0:00:18]} O-O {[%emt 0:00:25]} 14. Nf4 {[%emt 0:00:26]} Nd6 {[%emt 0:00:25]} 15. Nd2 {[%emt 0:00:15]} Qc7 {[%emt 0:03:16]} 16. Rac1 {[%emt 0:00:46]} Qb6 {[%emt 0:00:28]} 17. Qa2 {[%emt 0:00:52]} Rfe8 {[%emt 0:00:48]} 18. Ne2 {[%emt 0:01:55]} Rad8 {[%emt 0:03:41]} 19. Nc3 {[%emt 0:00:08]} Nb5 {[%emt 0:00:36]} 20. Nc4 {[%emt 0:00:54]} Qa6 {[%emt 0:00:48]} 21. Nxb5 {[%emt 0:00:37]} cxb5 {[%emt 0:00:16]} 22. Nd2 {[%emt 0:00:04]} Bd3 {[%emt 0:00:50]} 23. Rfd1 {[%emt 0:00:24]} Rc8 {[%emt 0:00:32]} 24. Bd5 {[%emt 0:00:38]} Bg6 {[%emt 0:00:35]} 25. Qb3 {[%emt 0:01:10]} b4 {[%emt 0:00:17]} 26. axb4 {[%emt 0:00:22]} Qb6 {[%emt 0:00:07]} 27. b5 {[%emt 0:00:23]} a6 {[%emt 0:00:59]} 28. bxa6 {[%emt 0:00:15]} Qxb3 {[%emt 0:00:01]} 29. Nxb3 {[%emt 0:00:19]} bxa6 {[%emt 0:00:02]} 30. e4 {[%emt 0:00:30]} Bb4 {[%emt 0:00:02]} 31. f3 {[%emt 0:00:10]} h5 {[%emt 0:00:02]} 32. Kf2 {[%emt 0:00:32]} Rb8 {[%emt 0:00:10]} 33. Rc2 {[%emt 0:00:13]} f5 {[%emt 0:00:03]} 34. e5 {[%emt 0:00:31]} f4 {[%emt 0:00:02]} 35. Re2 {[%emt 0:00:00]} fxg3+ {[%emt 0:00:02]} 36. hxg3 {[%emt 0:00:01]} Red8 {[%emt 0:00:06]} 37. Be4 {[%emt 0:00:33]} Bxe4 {[%emt 0:00:04]} 38. Rxe4 {[%emt 0:00:23]} Be7 {[%emt 0:00:04]} 39. Rd3 {[%emt 0:00:06]} Rb4 {[%emt 0:00:02]} 40. d5 {[%emt 0:00:09]} Rb7 {[%emt 0:00:11]} 41. d6 {[%emt 0:00:03]} Bf8 {[%emt 0:00:03]} 42. f4 {[%emt 0:00:17]} g6 {[%emt 0:00:01]} 43. Re2 {[%emt 0:00:18]} Bh6 {[%emt 0:00:08]} 44. Nc5 {[%emt 0:00:04]} Rb4 {[%emt 0:00:04]} 45. Nxa6 {[%emt 0:00:06]} Ra4 {[%emt 0:00:01]} 46. Nc5 {[%emt 0:00:02]} Rb4 {[%emt 0:00:01]} 47. Ne4 {[%emt 0:00:02]} h4 {[%emt 0:00:03]} 48. Nf6+ {[%emt 0:00:08]} Kg7 {[%emt 0:00:01]} 49. Nd5 {[%emt 0:00:03]} hxg3+ 50. Kxg3 {[%emt 0:00:01]} Rb5 {[%emt 0:00:05]} 51. b4 {[%emt 0:00:02]} Rdb8 {[%emt 0:00:02]} 52. Kf3 {[%emt 0:00:05]} Ra8 {[%emt 0:00:03]} 53. Rh2 {[%emt 0:00:06]} g5 {[%emt 0:00:02]} 54. f5 {[%emt 0:00:14]} g4+ {[%emt 0:00:02]} 55. Kxg4 {[%emt 0:00:02]} Ra4 {[%emt 0:00:01]} 1-0

[Event "GER-ch Rapid Women 2017"]
[Site "Erfurt"]
[Date "2017.07.29"]
[Round "5"]
[White "Fuchs, Judith"]
[Black "Mader, Manuela"]
[Result "1/2-1/2"]
[ECO "D00"]
[WhiteElo "2285"]
[BlackElo "2203"]
[Annotator "NA"]
[PlyCount "85"]
[EventDate "2017.??.??"]
[EventType "swiss"]
[EventCountry "GER"]
[SourceTitle "playchess.com"]
[Source "ChessBase"]
[SourceQuality "1"]
[TimeControl "1200"]

1. d4 {[%emt 0:00:02]} d5 {[%emt 0:00:06]} 2. Bf4 {[%emt 0:00:02]} Nf6 {[%emt 0:00:01]} 3. e3 {[%emt 0:00:04]} c5 {[%emt 0:00:02]} 4. c3 {[%emt 0:00:02]} Nc6 {[%emt 0:00:02]} 5. Nd2 {[%emt 0:00:03]} Bf5 {[%emt 0:00:08]} 6. Ngf3 {[%emt 0:00:55]} e6 {[%emt 0:00:20]} 7. Bb5 {[%emt 0:00:17]} Qb6 {[%emt 0:00:37]} 8. Qa4 {[%emt 0:01:01]} Nd7 {[%emt 0:01:48]} 9. O-O {[%emt 0:00:27]} Be7 {[%emt 0:00:02]} 10. Bxc6 {[%emt 0:02:12]} bxc6 {[%emt 0:00:10]} 11. c4 {[%emt 0:01:33]} O-O {[%emt 0:01:01]} 12. cxd5 {[%emt 0:00:19]} exd5 {[%emt 0:00:02]} 13. Rfc1 {[%emt 0:00:17]} Rfc8 {[%emt 0:00:11]} 14. b3 {[%emt 0:00:26]} Bf8 {[%emt 0:03:00]} 15. h3 {[%emt 0:00:19]} Bd3 {[%emt 0:00:01]} 16. Ne5 {[%emt 0:00:49]} Nf6 {[%emt 0:01:14]} 17. Bg5 {[%emt 0:00:53]} Bb5 {[%emt 0:00:33]} 18. dxc5 {[%emt 0:00:11]} Bxc5 {[%emt 0:00:17]} 19. Qf4 {[%emt 0:00:17]} Be7 {[%emt 0:00:49]} 20. Ng4 {[%emt 0:01:32]} Nh5 {[%emt 0:04:25]} 21. Qe5 {[%emt 0:00:20]} Ba3 {[%emt 0:00:18]} 22. Rd1 {[%emt 0:02:55]} Be2 {[%emt 0:00:38]} 23. Bh4 {[%emt 0:00:29]} Bxd1 {[%emt 0:01:37]} 24. Rxd1 {[%emt 0:00:02]} Qb5 {[%emt 0:00:08]} 25. Qxh5 {[%emt 0:00:13]} Qd3 {[%emt 0:00:11]} 26. Qxf7+ {[%emt 0:00:17]} Kxf7 {[%emt 0:00:02]} 27. Ne5+ {[%emt 0:00:01]} Ke6 {[%emt 0:00:01]} 28. Nxd3 {[%emt 0:00:01]} Bd6 {[%emt 0:00:14]} 29. Nf3 {[%emt 0:00:33]} h6 {[%emt 0:00:06]} 30. Nd4+ {[%emt 0:00:07]} Kd7 {[%emt 0:00:05]} 31. Rc1 {[%emt 0:00:12]} c5 {[%emt 0:00:10]} 32. Nf5 {[%emt 0:00:08]} Bf8 {[%emt 0:00:01]} 33. Bg3 {[%emt 0:00:09]} g5 {[%emt 0:00:14]} 34. h4 {[%emt 0:00:28]} Ke6 {[%emt 0:00:03]} 35. Nxc5+ {[%emt 0:00:32]} Kxf5 {[%emt 0:00:09]} 36. b4 {[%emt 0:00:02]} a5 {[%emt 0:00:06]} 37. a3 {[%emt 0:00:02]} axb4 {[%emt 0:00:02]} 38. axb4 {[%emt 0:00:00]} Ra7 {[%emt 0:00:13]} 39. hxg5 {[%emt 0:00:02]} hxg5 {[%emt 0:00:01]} 40. Rd1 {[%emt 0:00:01]} Bxc5 {[%emt 0:00:09]} 41. Rxd5+ {[%emt 0:00:03]} Ke6 {[%emt 0:00:01]} 42. Re5+ {[%emt 0:00:12]} Kf6 {[%emt 0:00:03]} 43. f4 {[%emt 0:00:14] Kxe5} 1/2-1/2